Workbook

Sheet Absorbance
A1: Chosen wavelength | C1: 400 | E1: ='Absorbance Data'!D6 -> USB2E1203 | U1: Samples recorded at
A2: Sample | B2: Conc | C2: % T | D2: Abs | U2: Clock | V2: Seconds
A3: 1 | C3: 23.2406881 | D3: 0.6337510177 | U3: 11:34:48 | V3: 41688.15234
A4: 2 | C4: 12.81269331 | D4: 0.8923595692 | U4: 11:33:30 | V4: 41610.71875
L12: 1
O13: =C1 -> 400 | P13: ='Absorbance Data'!I8 -> 0.9110705963
O14: =C1 -> 400 | P14: ='Absorbance Data'!I9 -> 0.0959700771

Sheet Absorbance Data
C1: Integration Time/ADC Rate | D1: 10 | E1: <<-- Integration time in msec (normally 10)
C2: Samples to Average | D2: 10 | E2: <<-- Number of spectra to average (normally 10)
C3: Boxcar Width | D3: 1 | E3: <<-- Boxcar smoothing width in pixels (normally 1)
C4: Channel Number | D4: 0 | E4: <<-- 0=Master, 1=Slave1, 2=Slave2, 3=Slave3 (normally 0)
C5: DelayTime | D5: 10 | E5: <<-- Seconds for light to warm up during blank measurment (normally 10)
C6: USB Serial Number | D6: USB2E1203 | G6: Next Spectrum | I6: 3
C7: First Wavelength Coefficient | D7: 0.3641566932 | G7: Time Stamp | I7: Blank Recorded at 3/19/2020 11:30:19 AM
C8: Second Wavelength Coefficient | D8: -1.365759999e-05 | G8: Max Absorbance | I8: =MAX(E2650:CW4109) -> 0.9110705963 | K8: Multiple Samples | M8: 2
C9: Third Wavelength Coefficient | D9: -1.941240058e-09 | G9: Min Absorbance | I9: =MIN(E2650:CW4109) -> 0.0959700771 | K9: Delay time (seconds) | M9: 1
C10: Wavelength Intercept | D10: 189.3787079 | E10: Spectra 1 | F10: Spectra 2
A11: D | B11: R | C11: Pixel # | D11: l (nm) | E11: Transmitance | F11: Transmitance
A12: 0 | B12: 0 | C12: 0 | D12: 189.3787079 | E12: 0 | F12: 0
A13: 112.9800034 | B13: 112.5400009 | C13: 1 | D13: 189.7428436 | E13: 1699.99133 | F13: 1745.44493
A14: 114.25 | B14: 113.9700012 | C14: 2 | D14: 190.1069641 | E14: 2589.297003 | F14: 2875.013624
A15: 115.3399963 | B15: 115 | C15: 3 | D15: 190.4710541 | E15: 2011.785298 | F15: 2600.026928
A16: 116.1800003 | B16: 115.5899963 | C16: 4 | D16: 190.8351135 | E16: 1318.634994 | F16: 1403.380187
A17: 117.5800018 | B17: 117.3199997 | C17: 5 | D17: 191.1991577 | E17: 3069.206843 | F17: 2838.440095
A18: 118.5400009 | B18: 118.1200027 | C18: 6 | D18: 191.5631561 | E18: 2009.533152 | F18: 1676.198002
A19: 119.5800018 | B19: 118.8899994 | C19: 7 | D19: 191.9271393 | E19: 1199.995577 | F19: 1040.576073
A20: 119.8899994 | B20: 119.5599976 | C20: 8 | D20: 192.2910919 | E20: 2299.986128 | F20: 2209.078929
A21: 120.5400009 | B21: 120.3099976 | C21: 9 | D21: 192.6549988 | E21: 3321.690384 | F21: 3147.779215
A22: 121.3700027 | B22: 121.0100021 | C22: 10 | D22: 193.0189056 | E22: 2324.996821 | F22: 2130.553554
A23: 121.3899994 | B23: 121.4499969 | C23: 11 | D23: 193.382782 | E23: -12817.19227 | F23: -12817.19227
A24: 121.5999985 | B24: 121.3799973 | C24: 12 | D24: 193.7466125 | E24: 3181.800527 | F24: 3227.254127
A25: 121.4800034 | B25: 121.7399979 | C25: 13 | D25: 194.1104431 | E25: -3184.685134 | F25: -2723.135161
A26: 121.9599991 | B26: 121.5400009 | C26: 14 | D26: 194.4742279 | E26: 2014.294278 | F26: 1847.627611
A27: 121.6299973 | B27: 121.7099991 | C27: 15 | D27: 194.8379974 | E27: -8787.297349 | F27: -10537.2592
A28: 121.5500031 | B28: 121.8899994 | C28: 16 | D28: 195.2017059 | E28: -1808.843461 | F28: -2485.322233
A29: 121.6133423 | B29: 121.6166687 | C29: 17 | D29: 195.5653992 | E29: -203823.1651 | F29: -266954.1284
A30: 121.6300049 | B30: 121.5466614 | C30: 18 | D30: 195.9290924 | E30: 8754.93409 | F30: 10274.74368
A31: 121.6399918 | B31: 121.6066666 | C31: 19 | D31: 196.2927399 | E31: 23925.82418 | F31: 24325.93864
A32: 121.703331 | B32: 121.609993 | C32: 20 | D32: 196.6563568 | E32: 8860.274644 | F32: 8645.994769
A33: 121.6533279 | B33: 121.5799942 | C33: 21 | D33: 197.0199585 | E33: 11027.19517 | F33: 11209.03038
A34: 121.5699997 | B34: 121.5366592 | C34: 22 | D34: 197.3835297 | E34: 23904.89703 | F34: 23904.89703
A35: 121.6633301 | B35: 121.8399963 | C35: 23 | D35: 197.7470703 | E35: -4281.140957 | F35: -4356.611677
A36: 121.7699966 | B36: 123.1999893 | C36: 24 | D36: 198.1105652 | E36: -447.7874643 | F36: -494.4086389
A37: 121.7833328 | B37: 124.8066711 | C37: 25 | D37: 198.4740601 | E37: -151.5987635 | F37: -206.7253801
A38: 121.6366577 | B38: 126.3933334 | C38: 26 | D38: 198.8375244 | E38: -72.94997169 | F38: -107.9883939
A39: 121.6399918 | B39: 126.8800049 | C39: 27 | D39: 199.2009277 | E39: -61.83171986 | F39: -84.73265882
A40: 121.659996 | B40: 127.1933365 | C40: 28 | D40: 199.5643311 | E40: -55.90335132 | F40: -79.99975182
A41: 121.6700058 | B41: 127.3233337 | C41: 29 | D41: 199.9277191 | E41: -45.46007857 | F41: -82.01669921
A42: 121.7833328 | B42: 127.409996 | C42: 30 | D42: 200.2910614 | E42: -53.61384031 | F42: -91.5285194
A43: 121.7766724 | B43: 127.5933304 | C43: 31 | D43: 200.6543884 | E43: -60.91702398 | F43: -88.42420196
A44: 121.7999954 | B44: 127.4800034 | C44: 32 | D44: 201.0176697 | E44: -73.94350495 | F44: -88.02804604
A45: 121.6500015 | B45: 127.4666672 | C45: 33 | D45: 201.3809204 | E45: -64.46992531 | F45: -79.36967636
A46: 121.796669 | B46: 127.4833374 | C46: 34 | D46: 201.7441711 | E46: -69.10901131 | F46: -80.83229245
A47: 121.8733292 | B47: 127.7699966 | C47: 35 | D47: 202.1073914 | E47: -61.72977197 | F47: -77.55767977
A48: 122.0966721 | B48: 128.0999908 | C48: 36 | D48: 202.4705505 | E48: -63.79820224 | F48: -81.01076802
A49: 122.0833359 | B49: 128.0299988 | C49: 37 | D49: 202.833725 | E49: -55.7735608 | F49: -82.11910844
A50: 122.1566696 | B50: 128.0333252 | C50: 38 | D50: 203.1968384 | E50: -50.31229512 | F50: -85.47954275
A51: 122.0966721 | B51: 127.9466782 | C51: 39 | D51: 203.5599365 | E51: -44.95730152 | F51: -84.27355198
A52: 122.2366714 | B52: 128.0166626 | C52: 40 | D52: 203.9230042 | E52: -51.96100819 | F52: -85.98644394
A53: 122.4833374 | B53: 128.3033295 | C53: 41 | D53: 204.286026 | E53: -58.13305053 | F53: -84.47888018
A54: 122.5799942 | B54: 128.5166779 | C54: 42 | D54: 204.6490631 | E54: -56.93396887 | F54: -87.81545057
A55: 122.546669 | B55: 128.6500092 | C55: 43 | D55: 205.0120392 | E55: -44.45652813 | F55: -87.05612786
A56: 122.3866577 | B56: 128.2933197 | C56: 44 | D56: 205.3749847 | E56: -46.61378614 | F56: -94.58239365
A57: 122.3799973 | B57: 128.0800018 | C57: 45 | D57: 205.737915 | E57: -53.45015667 | F57: -95.55554663
A58: 122.5066757 | B58: 128.1266632 | C58: 46 | D58: 206.1008301 | E58: -64.17584029 | F58: -101.5425801
A59: 122.4899979 | B59: 128.3233185 | C59: 47 | D59: 206.4637146 | E59: -54.68587534 | F59: -92.40019095
A60: 122.4599991 | B60: 128.5100098 | C60: 48 | D60: 206.8265533 | E60: -50.02755405 | F60: -89.14597591
A61: 122.2900009 | B61: 128.6199951 | C61: 49 | D61: 207.1893616 | E61: -48.28856735 | F61: -83.04380578
A62: 122.4200058 | B62: 128.7533417 | C62: 50 | D62: 207.5521545 | E62: -66.63157147 | F62: -81.89473126
A63: 122.6666641 | B63: 128.8966675 | C63: 51 | D63: 207.914917 | E63: -79.7216191 | F63: -81.32685264
A64: 122.9700012 | B64: 128.8966675 | C64: 52 | D64: 208.2776489 | E64: -86.67039984 | F64: -78.79650369
A65: 122.9633255 | B65: 128.9899902 | C65: 53 | D65: 208.6403656 | E65: -69.63478904 | F65: -76.82507371
A66: 122.9366684 | B66: 129.0166626 | C66: 54 | D66: 209.0030365 | E66: -59.81375727 | F66: -78.45409246
A67: 122.9466629 | B67: 129.0800018 | C67: 55 | D67: 209.3656769 | E67: -59.99995024 | F67: -81.73910231
A68: 123.1233292 | B68: 129.0966644 | C68: 56 | D68: 209.7283173 | E68: -64.00668253 | F68: -86.88617347
A69: 123.3033371 | B69: 129.2633362 | C69: 57 | D69: 210.0908966 | E69: -63.81439063 | F69: -86.74507706
A70: 123.3233337 | B70: 129.3666534 | C70: 58 | D70: 210.453476 | E70: -61.05919632 | F70: -90.29263612
A71: 123.2633362 | B71: 129.3266754 | C71: 59 | D71: 210.8160095 | E71: -62.61680009 | F71: -91.20397517
A72: 123.1166687 | B72: 129.0533447 | C72: 60 | D72: 211.1785278 | E72: -62.60531632 | F72: -92.92523634
A73: 123.1166687 | B73: 129.0133209 | C73: 61 | D73: 211.5410004 | E73: -57.94243912 | F73: -91.8599897
A74: 123.2766724 | B74: 128.9300079 | C74: 62 | D74: 211.9034576 | E74: -62.67689077 | F74: -102.1816641
A75: 123.2699966 | B75: 128.9066772 | C75: 63 | D75: 212.2658844 | E75: -65.10920926 | F75: -99.99972929
A76: 123.3166733 | B76: 128.8133392 | C76: 64 | D76: 212.6282959 | E76: -65.19107958 | F76: -99.15123553
A77: 123.3433304 | B77: 128.9299927 | C77: 65 | D77: 212.9906464 | E77: -56.86161242 | F77: -86.69452581
A78: 123.4500046 | B78: 129.1100006 | C78: 66 | D78: 213.3529968 | E78: -52.12025875 | F78: -86.27799862
A79: 123.4033432 | B79: 129.136673 | C79: 67 | D79: 213.7153168 | E79: -50.0583516 | F79: -87.84902838
A80: 123.25 | B80: 128.8800049 | C80: 68 | D80: 214.0775909 | E80: -50.62159862 | F80: -99.76312309
A81: 123.3433304 | B81: 128.7833252 | C81: 69 | D81: 214.4398651 | E81: -56.55644705 | F81: -110.4779456
A82: 123.4466629 | B82: 128.7133331 | C82: 70 | D82: 214.8020782 | E82: -61.01261312 | F82: -117.3416986
A83: 123.5100021 | B83: 128.9966583 | C83: 71 | D83: 215.1642761 | E83: -64.58095494 | F83: -110.7537124
A84: 123.4266663 | B84: 128.969986 | C84: 72 | D84: 215.526474 | E84: -72.03877375 | F84: -106.3142915
A85: 123.4000015 | B85: 128.9966583 | C85: 73 | D85: 215.8886108 | E85: -74.44916265 | F85: -101.2508776
A86: 123.3800049 | B86: 128.7466583 | C86: 74 | D86: 216.2507324 | E86: -80.37283663 | F86: -101.4911475
A87: 123.359993 | B87: 128.8266602 | C87: 75 | D87: 216.6128082 | E87: -74.87784829 | F87: -96.82900993
A88: 123.340004 | B88: 128.8733368 | C88: 76 | D88: 216.9748688 | E88: -77.22887496 | F88: -100.7230461
A89: 123.4733353 | B89: 129.1066742 | C89: 77 | D89: 217.3369141 | E89: -73.49104044 | F89: -102.4850584
A90: 123.4833374 | B90: 129.3800049 | C90: 78 | D90: 217.6989136 | E90: -66.98719607 | F90: -97.51270559
A91: 123.4500046 | B91: 129.5233307 | C91: 79 | D91: 218.0608978 | E91: -58.45237004 | F91: -89.73673533
A92: 123.4166641 | B92: 129.4566803 | C92: 80 | D92: 218.4228516 | E92: -53.80780293 | F92: -86.92029704
A93: 123.4833374 | B93: 129.1866608 | C93: 81 | D93: 218.7847443 | E93: -58.15334441 | F93: -91.46728094
A94: 123.5566635 | B94: 128.9933319 | C94: 82 | D94: 219.1466675 | E94: -70.3247988 | F94: -91.17100176
A95: 123.4899902 | B95: 128.9733429 | C95: 83 | D95: 219.5085144 | E95: -66.07857924 | F95: -87.35533188
A96: 123.4033279 | B96: 128.8199921 | C96: 84 | D96: 219.8703461 | E96: -65.2923421 | F96: -84.98435856
A97: 123.4033279 | B97: 128.75 | C97: 85 | D97: 220.2321625 | E97: -61.15933385 | F97: -87.34387463
A98: 123.5166626 | B98: 128.6500092 | C98: 86 | D98: 220.5939331 | E98: -74.99977706 | F98: -87.33736798
A99: 123.6299973 | B99: 128.6699982 | C99: 87 | D99: 220.9556732 | E99: -77.31466554 | F99: -99.1401795
A100: 123.6199951 | B100: 128.7600098 | C100: 88 | D100: 221.3174133 | E100: -69.7793716 | F100: -100.2590128
A101: 123.5 | B101: 128.8933258 | C101: 89 | D101: 221.6790924 | E101: -59.33239404 | F101: -97.65162382
A102: 123.3700027 | B102: 128.780014 | C102: 90 | D102: 222.0407562 | E102: -54.8982444 | F102: -83.85688358
A103: 123.3833313 | B103: 128.8000031 | C103: 91 | D103: 222.4024048 | E103: -63.0768169 | F103: -80.30758873
A104: 123.253334 | B104: 128.75 | C104: 92 | D104: 222.7640076 | E104: -65.25173535 | F104: -77.38025342
A105: 123.1866684 | B105: 128.9533234 | C105: 93 | D105: 223.1256104 | E105: -68.55501179 | F105: -77.22554962
A106: 123.1033325 | B106: 128.7233276 | C106: 94 | D106: 223.4871368 | E106: -73.01309759 | F106: -79.53745737
A107: 123.1399918 | B107: 128.5833282 | C107: 95 | D107: 223.8486786 | E107: -76.66836261 | F107: -82.79210449
A108: 123.1466675 | B108: 128.3533325 | C108: 96 | D108: 224.2101593 | E108: -72.599231 | F108: -87.96406466
A109: 123.206665 | B109: 128.5 | C109: 97 | D109: 224.5716248 | E109: -63.72786131 | F109: -91.43567096
A110: 123.1800003 | B110: 128.5166626 | C110: 98 | D110: 224.933075 | E110: -56.46480921 | F110: -95.19061827
A111: 123 | B111: 128.5633392 | C111: 99 | D111: 225.2944794 | E111: -52.12699431 | F111: -92.86983782
A112: 122.9133301 | B112: 128.6699982 | C112: 100 | D112: 225.6558533 | E112: -50.02889185 | F112: -84.19204864
A113: 123 | B113: 128.6800079 | C113: 101 | D113: 226.0172119 | E113: -60.44580854 | F113: -83.91999893
A114: 123.1566696 | B114: 128.6433258 | C114: 102 | D114: 226.37854 | E114: -64.82402068 | F114: -85.48002008
A115: 123.0299988 | B115: 128.6166687 | C115: 103 | D115: 226.7398224 | E115: -63.18609885 | F115: -85.26253114
A116: 122.9766617 | B116: 128.6500092 | C116: 104 | D116: 227.1011047 | E116: -60.10540372 | F116: -87.72002254
A117: 122.996666 | B117: 128.6399994 | C117: 105 | D117: 227.4623413 | E117: -63.14245427 | F117: -93.85696305
A118: 123.0466614 | B118: 128.3066559 | C118: 106 | D118: 227.8235321 | E118: -68.69464694 | F118: -106.0835057
A119: 122.8933334 | B119: 128.1866608 | C119: 107 | D119: 228.1847229 | E119: -62.21672598 | F119: -96.22157171
A120: 122.75 | B120: 128.1933441 | C120: 108 | D120: 228.5458832 | E120: -53.58221088 | F120: -87.87489313
A121: 122.8299942 | B121: 128.323349 | C121: 109 | D121: 228.9070129 | E121: -52.12346794 | F121: -80.64275546
A122: 122.9366684 | B122: 128.2866821 | C122: 110 | D122: 229.2681122 | E122: -54.89085716 | F122: -81.68194205
A123: 122.9466629 | B123: 128.3000031 | C123: 111 | D123: 229.6291809 | E123: -57.53406501 | F123: -75.59147922
A124: 122.7200012 | B124: 128.4166718 | C124: 112 | D124: 229.9902039 | E124: -50.67285053 | F124: -69.98234839
A125: 122.6500015 | B125: 128.6833344 | C125: 113 | D125: 230.3512115 | E125: -42.26524751 | F125: -70.44199489
A126: 122.6833267 | B126: 128.7133331 | C126: 114 | D126: 230.7122192 | E126: -52.79143181 | F126: -76.56158863
A127: 122.6966629 | B127: 128.656662 | C127: 115 | D127: 231.0731659 | E127: -58.10949719 | F127: -81.59945929
A128: 122.5966721 | B128: 128.4466705 | C128: 116 | D128: 231.4340668 | E128: -64.90047224 | F128: -83.13394742
A129: 122.4833298 | B129: 128.3633423 | C129: 117 | D129: 231.7949677 | E129: -53.57121077 | F129: -88.71864073
A130: 122.5 | B130: 128.3400116 | C130: 118 | D130: 232.155838 | E130: -50.79912523 | F130: -89.04099746
A131: 122.5400009 | B131: 128.3133392 | C131: 119 | D131: 232.5166779 | E131: -52.07863379 | F131: -90.18465145
A132: 122.5400009 | B132: 128.3333282 | C132: 120 | D132: 232.8774872 | E132: -55.35100738 | F132: -86.99665369
A133: 122.5266724 | B133: 128.2400055 | C133: 121 | D133: 233.238266 | E133: -59.97679133 | F133: -87.98143306
A134: 122.4000015 | B134: 128.3733368 | C134: 122 | D134: 233.5990143 | E134: -60.26768437 | F134: -84.26335708
A135: 122.456665 | B135: 128.4166718 | C135: 123 | D135: 233.9597473 | E135: -63.03114479 | F135: -80.36905234
A136: 122.3866653 | B136: 128.5533295 | C136: 124 | D136: 234.3204193 | E136: -61.94584282 | F136: -71.13514303
A137: 122.4033279 | B137: 128.5166626 | C137: 125 | D137: 234.6811218 | E137: -60.57804507 | F137: -72.57349739
A138: 122.4766617 | B138: 128.4099884 | C138: 126 | D138: 235.041748 | E138: -66.46080137 | F138: -81.06746493
A139: 122.4933395 | B139: 128.2566681 | C139: 127 | D139: 235.402359 | E139: -65.81847498 | F139: -86.061495
A140: 122.5599976 | B140: 128.1799927 | C140: 128 | D140: 235.7629242 | E140: -69.86956711 | F140: -87.0700656
A141: 122.4700012 | B141: 128.1733398 | C141: 129 | D141: 236.1234741 | E141: -70.19268328 | F141: -83.05072049
A142: 122.5566635 | B142: 128.0900116 | C142: 130 | D142: 236.4839935 | E142: -73.31300059 | F142: -82.95138204
A143: 122.6300049 | B143: 128.0999908 | C143: 131 | D143: 236.8444977 | E143: -70.62801097 | F143: -84.64381655
A144: 122.6399918 | B144: 128.1166687 | C144: 132 | D144: 237.2049408 | E144: -65.85487832 | F144: -77.41903129
A145: 122.5400009 | B145: 128.1833344 | C145: 133 | D145: 237.5653992 | E145: -65.09166765 | F145: -82.81169095
A146: 122.2766724 | B146: 128.1633301 | C146: 134 | D146: 237.9257965 | E146: -63.59036569 | F146: -76.04759609
A147: 122.0966721 | B147: 128.0900116 | C147: 135 | D147: 238.2861633 | E147: -57.23032898 | F147: -80.58961835
A148: 122.046669 | B148: 128.093338 | C148: 136 | D148: 238.6465302 | E148: -52.03968461 | F148: -78.50038294
A149: 122.1666641 | B149: 127.9833374 | C149: 137 | D149: 239.0068512 | E149: -55.01421164 | F149: -84.81354349
A150: 122.1566696 | B150: 127.8166733 | C150: 138 | D150: 239.3671265 | E150: -60.48286218 | F150: -86.39582783
A151: 122.1333313 | B151: 127.7999954 | C151: 139 | D151: 239.7273865 | E151: -61.17650702 | F151: -83.52938642
A152: 122.0533371 | B152: 127.5166626 | C152: 140 | D152: 240.0876312 | E152: -60.15886293 | F152: -82.73357083
A153: 121.9200058 | B153: 127.7600021 | C153: 141 | D153: 240.4478149 | E153: -47.14629112 | F153: -65.9817626
A154: 121.909996 | B154: 127.7833328 | C154: 142 | D154: 240.8080139 | E154: -45.5730486 | F154: -69.40960991
A155: 121.8466568 | B155: 127.956665 | C155: 143 | D155: 241.1681519 | E155: -43.86234143 | F155: -71.13994988
A156: 121.9200058 | B156: 127.8366699 | C156: 144 | D156: 241.5282745 | E156: -48.22535909 | F156: -86.53542383
A157: 121.9233322 | B157: 127.9466629 | C157: 145 | D157: 241.8883514 | E157: -51.30045979 | F157: -84.50468024
A158: 122.0299988 | B158: 128.1666718 | C158: 146 | D158: 242.2484283 | E158: -48.83221897 | F158: -87.94125911
A159: 122.2766724 | B159: 128.3099976 | C159: 147 | D159: 242.6084595 | E159: -52.09964593 | F159: -90.77377339
A160: 122.2800064 | B160: 128.280014 | C160: 148 | D160: 242.9684601 | E160: -50.77775221 | F160: -88.55554129
A161: 122.246666 | B161: 128.1399994 | C161: 149 | D161: 243.3284302 | E161: -50.56566695 | F161: -84.50231795
A162: 122.0333328 | B162: 127.9899979 | C162: 150 | D162: 243.6883698 | E162: -41.96979322 | F162: -78.34369941
A163: 122.1133347 | B163: 128.0200043 | C163: 151 | D163: 244.0482788 | E163: -36.34298158 | F163: -82.6184224
A164: 122.0999985 | B164: 127.9433289 | C164: 152 | D164: 244.4081573 | E164: -34.79736831 | F164: -71.30645505
A165: 122.1500015 | B165: 128.0800018 | C165: 153 | D165: 244.7680054 | E165: -37.94266247 | F165: -55.93027789
A166: 122.0933304 | B166: 127.9333267 | C166: 154 | D166: 245.1278381 | E166: -51.82635278 | F166: -40.98163196
A167: 122.1600037 | B167: 128.0299988 | C167: 155 | D167: 245.4876404 | E167: -54.9689885 | F167: -50.99390168
A168: 122.0866699 | B168: 127.9000015 | C168: 156 | D168: 245.8474121 | E168: -56.53684881 | F168: -61.69732206
A169: 122.0233383 | B169: 127.8399963 | C169: 157 | D169: 246.2071533 | E169: -45.10041304 | F169: -72.03453301
A170: 121.9166641 | B170: 127.7666626 | C170: 158 | D170: 246.566864 | E170: -37.89162605 | F170: -68.66091701
A171: 121.8566666 | B171: 127.8766708 | C171: 159 | D171: 246.9265442 | E171: -34.71764924 | F171: -62.40308014
A172: 121.7733383 | B172: 128 | C172: 160 | D172: 247.2861938 | E172: -33.29767773 | F172: -51.49894442
A173: 121.7399979 | B173: 127.9899979 | C173: 161 | D173: 247.645813 | E173: -37.43994141 | F173: -43.83996582
A174: 122.5199966 | B174: 128.4733276 | C174: 162 | D174: 248.0054169 | E174: -45.68847196 | F174: -48.48823872
A175: 122.9766617 | B175: 128.543335 | C175: 163 | D175: 248.364975 | E175: -54.07169338 | F175: -69.04164411
A176: 123.0633316 | B176: 128.6966705 | C176: 164 | D176: 248.7245026 | E176: -52.01165265 | F176: -79.82225786
A177: 122.5133362 | B177: 128.1766663 | C177: 165 | D177: 249.0840302 | E177: -50.26498577 | F177: -97.35148942
A178: 122.2099991 | B178: 127.9933243 | C178: 166 | D178: 249.4434967 | E178: -43.40054246 | F178: -99.30847247
A179: 122.1666641 | B179: 127.8233261 | C179: 167 | D179: 249.8029327 | E179: -46.55287755 | F179: -102.5340221
A180: 122.0733337 | B180: 127.8266602 | C180: 168 | D180: 250.1623688 | E180: -42.41029041 | F180: -85.86341334
A181: 122.0299988 | B181: 127.7833252 | C181: 169 | D181: 250.5217438 | E181: -53.2445299 | F181: -77.57817266
A182: 121.9700012 | B182: 127.8233337 | C182: 170 | D182: 250.8811035 | E182: -60.42155452 | F182: -76.93624154
A183: 121.890007 | B183: 127.7766647 | C183: 171 | D183: 251.2404327 | E183: -67.21437681 | F183: -78.53937914
A184: 121.7733383 | B184: 127.7666626 | C184: 172 | D184: 251.5997314 | E184: -57.95352852 | F184: -70.18917787
A185: 121.7333374 | B185: 127.7466736 | C185: 173 | D185: 251.9589996 | E185: -50.99786851 | F185: -55.43238854
A186: 121.753334 | B186: 127.8133316 | C186: 174 | D186: 252.3182526 | E186: -44.33460574 | F186: -55.88558925
A187: 121.8533325 | B187: 127.8866806 | C187: 175 | D187: 252.6774597 | E187: -47.29268857 | F187: -67.18221858
A188: 122.0733337 | B188: 127.9633408 | C188: 176 | D188: 253.0366211 | E188: -49.34917068 | F188: -83.87090924
A189: 122.1233292 | B189: 128.0800018 | C189: 177 | D189: 253.395813 | E189: -57.47041638 | F189: -81.53321217
A190: 122.0833359 | B190: 128 | C190: 178 | D190: 253.7549438 | E190: -56.05647388 | F190: -72.39451767
A191: 121.8466568 | B191: 127.8633194 | C191: 179 | D191: 254.1140137 | E191: -58.94706676 | F191: -65.59542287
A192: 121.7133408 | B192: 127.6866684 | C192: 180 | D192: 254.4730835 | E192: -53.23691847 | F192: -69.41972268
A193: 121.7866592 | B193: 127.7666626 | C193: 181 | D193: 254.8321381 | E193: -58.30538229 | F193: -83.38898025
A194: 121.8499985 | B194: 127.8566666 | C194: 182 | D194: 255.1911316 | E194: -59.65596604 | F194: -90.17764376
A195: 121.8433228 | B195: 127.8833313 | C195: 183 | D195: 255.5500946 | E195: -59.76788484 | F195: -87.91361618
A196: 121.6366653 | B196: 127.8466721 | C196: 184 | D196: 255.9090576 | E196: -54.80405623 | F196: -73.59077495
A197: 121.7666626 | B197: 127.6399918 | C197: 185 | D197: 256.2679443 | E197: -50.51082773 | F197: -78.88764908
A198: 121.8666687 | B198: 127.6033325 | C198: 186 | D198: 256.6268616 | E198: -48.80877651 | F198: -89.48286777
A199: 122 | B199: 127.6666641 | C199: 187 | D199: 256.9857178 | E199: -47.05879977 | F199: -102.3529063
A200: 121.956665 | B200: 127.7233353 | C200: 188 | D200: 257.3445129 | E200: -45.49122907 | F200: -96.93629283
... 3911 more rows

Sheet Emission
A1: Chosen wavelength | C1: 300 | E1: ='Emission Data'!D6 -> USB2000 | K1: Trigger level | U1: Samples recorded at
A2: Sample | B2: Intensity | C2: Peak | D2: Intensity | K2: 1000 | U2: Clock | V2: Seconds
K3: Press ESC or
K4: set value for
K5: sample capture
G12: =C1 -> 300 | H12: ='Emission Data'!I8 -> 0
G13: =C1 -> 300 | H13: ='Emission Data'!I9 -> 0

Sheet Emission Data
C1: Integration Time/ADC Rate | D1: 10 | E1: <<-- Integration time in msec (normally 10)
C2: Samples to Average | D2: 1 | E2: <<-- Number of spectra to average (normally 1)
C3: Boxcar Width | D3: 1 | E3: <<-- Boxcar smoothing width in pixels (normally 1)
C4: Channel Number | D4: 0 | E4: <<-- 0=Master, 1=Slave1, 2=Slave2, 3=Slave3, 4=Slave4, 5=Slave5, 6=Slave6, 7=Slave7 (normally 0)
C5: Get the USB Coeficients | D5: 1 | E5: <<-- 1=True, 0=False (Do this if spectrometer is changed)
C6: USB Serial Number | D6: USB2000 | G6: Next Spectrum | I6: 1
C7: First Wavelength Coefficient | D7: 0.3573606014 | G7: Time Stamp | I7: Blank not measured
C8: Second Wavelength Coefficient | D8: -9.445970136e-06 | G8: Max Intensity | I8: =MAX(D12:BG2059) -> 0 | K8: Multiple Samples | M8: 2
C9: Third Wavelength Coefficient | D9: -2.728139936e-09 | G9: Min Intensity | I9: =MIN(D12:BG2059) -> 0 | K9: Delay time (seconds) | M9: 1
C10: Wavelength Intercept | D10: 190.3335876 | G10: Trigger Level | I10: 1000
B11: Pixel # | C11: l (nm)

Sheet Time
A1: Sample | B1: Seconds | C1: %T(400) | D1: %T(600) | E1: %T(700) | F1: ='Absorbance Data'!D6 -> USB2E1203 | K1: Wavelength 1 | M1: 400 | P1: This sheet only records selected
K2: Wavelength 2 | M2: 600 | P2: wavelengths and not full spectrum
K3: Wavelength 3 | M3: 700 | P3: so data can be collected faster.
G4: Be sure to record blank spectrum | K4: Number of Samples | M4: 20
G5: on the Absorbance sheet first! | K5: Delay time (seconds) | M5: 0

Sheet bandedge
A1: Sample | B1: start1 | C1: stop1 | D1: start2 | E1: stop2 | F1: intersection | G1: slope1 | H1: intercept1 | I1: slope2 | J1: intercept2 | K1: Dataset | L1: ="index_"&B1 -> index_start1 | M1: ="index_"&C1 -> index_stop1 | N1: ="index_"&D1 -> index_start2 | O1: ="index_"&E1 -> index_stop2 | P1: ="y_"&B1 -> y_start1 | Q1: ="y_"&C1 -> y_stop1 | R1: y_start2 | S1: y_stop2 | T1: y_stop_extend
A2: 1 | B2: 410 | C2: 430 | D2: 550 | E2: 700 | F2: =(J2-H2)/(G2-I2) -> 456.5409508 | G2: =SLOPE(INDIRECT("'Absorbance Data'!"&bandedge!K2&bandedge!L2&":"&bandedge!K2&bandedge!M2),INDIRECT("'Absorbance Data'!D"&bandedge!L2&":D"&bandedge!M2)) -> -0.004658764181 | H2: =INTERCEPT(INDIRECT("'Absorbance Data'!"&bandedge!K2&bandedge!L2&":"&bandedge!K2&bandedge!M2),INDIRECT("'Absorbance Data'!D"&bandedge!L2&":D"&bandedge!M2)) -> 2.498969094 | I2: =SLOPE(INDIRECT("'Absorbance Data'!"&bandedge!K2&bandedge!N2&":"&bandedge!K2&bandedge!O2),INDIRECT("'Absorbance Data'!D"&bandedge!N2&":D"&bandedge!O2)) -> -0.0006149781818 | J2: =INTERCEPT(INDIRECT("'Absorbance Data'!"&bandedge!K2&bandedge!N2&":"&bandedge!K2&bandedge!O2),INDIRECT("'Absorbance Data'!D"&bandedge!N2&":D"&bandedge!O2)) -> 0.6528151894 | K2: E | L2: =2063+MATCH(B2,'Absorbance Data'!$D$2063:$D$4109) -> 2684 | M2: =2063+MATCH(C2,'Absorbance Data'!$D$2063:$D$4109) -> 2742 | N2: =2063+MATCH(D2,'Absorbance Data'!$D$2063:$D$4109) -> 3099 | O2: =2063+MATCH(E2,'Absorbance Data'!$D$2063:$D$4109) -> 3568 | P2: =G2*B2+H2 -> 0.58887578 | Q2: =G2*C2+H2 -> 0.4957004964 | R2: =I2*D2+J2 -> 0.3145771894 | S2: =I2*E2+J2 -> 0.2223304621 | T2: =G2*F2+H2 -> 0.3720524655 | U2: ="sample "&CODE(K2)-68 -> sample 1
A3: 2 | B3: 420 | C3: 450 | D3: 560 | E3: 700 | F3: 418.881834 | G3: =SLOPE(INDIRECT("'Absorbance Data'!"&bandedge!K3&bandedge!L3&":"&bandedge!K3&bandedge!M3),INDIRECT("'Absorbance Data'!D"&bandedge!L3&":D"&bandedge!M3)) -> -0.004636934856 | H3: =INTERCEPT(INDIRECT("'Absorbance Data'!"&bandedge!K3&bandedge!L3&":"&bandedge!K3&bandedge!M3),INDIRECT("'Absorbance Data'!D"&bandedge!L3&":D"&bandedge!M3)) -> 2.694431183 | I3: =SLOPE(INDIRECT("'Absorbance Data'!"&bandedge!K3&bandedge!N3&":"&bandedge!K3&bandedge!O3),INDIRECT("'Absorbance Data'!D"&bandedge!N3&":D"&bandedge!O3)) -> -0.001298615145 | J3: =INTERCEPT(INDIRECT("'Absorbance Data'!"&bandedge!K3&bandedge!N3&":"&bandedge!K3&bandedge!O3),INDIRECT("'Absorbance Data'!D"&bandedge!N3&":D"&bandedge!O3)) -> 1.2960697 | K3: F | L3: =2063+MATCH(B3,'Absorbance Data'!$D$2063:$D$4109) -> 2713 | M3: =2063+MATCH(C3,'Absorbance Data'!$D$2063:$D$4109) -> 2801 | N3: =2063+MATCH(D3,'Absorbance Data'!$D$2063:$D$4109) -> 3129 | O3: =2063+MATCH(E3,'Absorbance Data'!$D$2063:$D$4109) -> 3568 | P3: =G3*B3+H3 -> 0.7469185435 | Q3: =G3*C3+H3 -> 0.6078104978 | R3: =I3*D3+J3 -> 0.5688452187 | S3: =I3*E3+J3 -> 0.3870390985 | T3: 0.7521034063 | U3: ="sample "&CODE(K3)-68 -> sample 2
A4: 3 | B4: 430 | C4: 460 | D4: 570 | E4: 700 | G4: =SLOPE(INDIRECT("'Absorbance Data'!"&bandedge!K4&bandedge!L4&":"&bandedge!K4&bandedge!M4),INDIRECT("'Absorbance Data'!D"&bandedge!L4&":D"&bandedge!M4)) ->  | H4: =INTERCEPT(INDIRECT("'Absorbance Data'!"&bandedge!K4&bandedge!L4&":"&bandedge!K4&bandedge!M4),INDIRECT("'Absorbance Data'!D"&bandedge!L4&":D"&bandedge!M4)) ->  | I4: =SLOPE(INDIRECT("'Absorbance Data'!"&bandedge!K4&bandedge!N4&":"&bandedge!K4&bandedge!O4),INDIRECT("'Absorbance Data'!D"&bandedge!N4&":D"&bandedge!O4)) ->  | J4: =INTERCEPT(INDIRECT("'Absorbance Data'!"&bandedge!K4&bandedge!N4&":"&bandedge!K4&bandedge!O4),INDIRECT("'Absorbance Data'!D"&bandedge!N4&":D"&bandedge!O4)) ->  | K4: G | L4: =2063+MATCH(B4,'Absorbance Data'!$D$2063:$D$4109) -> 2742 | M4: =2063+MATCH(C4,'Absorbance Data'!$D$2063:$D$4109) -> 2830 | N4: =2063+MATCH(D4,'Absorbance Data'!$D$2063:$D$4109) -> 3160 | O4: =2063+MATCH(E4,'Absorbance Data'!$D$2063:$D$4109) -> 3568 | U4: sample 3
A5: 4 | B5: 450 | C5: 470 | D5: 580 | E5: 700 | G5: =SLOPE(INDIRECT("'Absorbance Data'!"&bandedge!K5&bandedge!L5&":"&bandedge!K5&bandedge!M5),INDIRECT("'Absorbance Data'!D"&bandedge!L5&":D"&bandedge!M5)) ->  | H5: =INTERCEPT(INDIRECT("'Absorbance Data'!"&bandedge!K5&bandedge!L5&":"&bandedge!K5&bandedge!M5),INDIRECT("'Absorbance Data'!D"&bandedge!L5&":D"&bandedge!M5)) ->  | I5: =SLOPE(INDIRECT("'Absorbance Data'!"&bandedge!K5&bandedge!N5&":"&bandedge!K5&bandedge!O5),INDIRECT("'Absorbance Data'!D"&bandedge!N5&":D"&bandedge!O5)) ->  | J5: =INTERCEPT(INDIRECT("'Absorbance Data'!"&bandedge!K5&bandedge!N5&":"&bandedge!K5&bandedge!O5),INDIRECT("'Absorbance Data'!D"&bandedge!N5&":D"&bandedge!O5)) ->  | K5: H | L5: =2063+MATCH(B5,'Absorbance Data'!$D$2063:$D$4109) -> 2801 | M5: =2063+MATCH(C5,'Absorbance Data'!$D$2063:$D$4109) -> 2860 | N5: =2063+MATCH(D5,'Absorbance Data'!$D$2063:$D$4109) -> 3191 | O5: =2063+MATCH(E5,'Absorbance Data'!$D$2063:$D$4109) -> 3568 | P5: =G5*B5+H5 ->  | Q5: =G5*C5+H5 ->  | R5: =I5*D5+J5 ->  | S5: =I5*E5+J5 ->  | U5: ="sample "&CODE(K5)-68 -> sample 4
A6: 5 | B6: 470 | C6: 500 | D6: 590 | E6: 700 | G6: =SLOPE(INDIRECT("'Absorbance Data'!"&bandedge!K6&bandedge!L6&":"&bandedge!K6&bandedge!M6),INDIRECT("'Absorbance Data'!D"&bandedge!L6&":D"&bandedge!M6)) ->  | H6: =INTERCEPT(INDIRECT("'Absorbance Data'!"&bandedge!K6&bandedge!L6&":"&bandedge!K6&bandedge!M6),INDIRECT("'Absorbance Data'!D"&bandedge!L6&":D"&bandedge!M6)) ->  | I6: =SLOPE(INDIRECT("'Absorbance Data'!"&bandedge!K6&bandedge!N6&":"&bandedge!K6&bandedge!O6),INDIRECT("'Absorbance Data'!D"&bandedge!N6&":D"&bandedge!O6)) ->  | J6: =INTERCEPT(INDIRECT("'Absorbance Data'!"&bandedge!K6&bandedge!N6&":"&bandedge!K6&bandedge!O6),INDIRECT("'Absorbance Data'!D"&bandedge!N6&":D"&bandedge!O6)) ->  | K6: I | L6: =2063+MATCH(B6,'Absorbance Data'!$D$2063:$D$4109) -> 2860 | M6: =2063+MATCH(C6,'Absorbance Data'!$D$2063:$D$4109) -> 2949 | N6: =2063+MATCH(D6,'Absorbance Data'!$D$2063:$D$4109) -> 3221 | O6: =2063+MATCH(E6,'Absorbance Data'!$D$2063:$D$4109) -> 3568 | U6: sample 5
A7: 6 | B7: 470 | C7: 500 | D7: 570 | E7: 700 | G7: =SLOPE(INDIRECT("'Absorbance Data'!"&bandedge!K7&bandedge!L7&":"&bandedge!K7&bandedge!M7),INDIRECT("'Absorbance Data'!D"&bandedge!L7&":D"&bandedge!M7)) ->  | H7: =INTERCEPT(INDIRECT("'Absorbance Data'!"&bandedge!K7&bandedge!L7&":"&bandedge!K7&bandedge!M7),INDIRECT("'Absorbance Data'!D"&bandedge!L7&":D"&bandedge!M7)) ->  | I7: =SLOPE(INDIRECT("'Absorbance Data'!"&bandedge!K7&bandedge!N7&":"&bandedge!K7&bandedge!O7),INDIRECT("'Absorbance Data'!D"&bandedge!N7&":D"&bandedge!O7)) ->  | J7: =INTERCEPT(INDIRECT("'Absorbance Data'!"&bandedge!K7&bandedge!N7&":"&bandedge!K7&bandedge!O7),INDIRECT("'Absorbance Data'!D"&bandedge!N7&":D"&bandedge!O7)) ->  | K7: J | L7: =2063+MATCH(B7,'Absorbance Data'!$D$2063:$D$4109) -> 2860 | M7: =2063+MATCH(C7,'Absorbance Data'!$D$2063:$D$4109) -> 2949 | N7: =2063+MATCH(D7,'Absorbance Data'!$D$2063:$D$4109) -> 3160 | O7: =2063+MATCH(E7,'Absorbance Data'!$D$2063:$D$4109) -> 3568 | U7: sample 6
A8: 7 | B8: 500 | C8: 530 | D8: 650 | E8: 750 | G8: =SLOPE(INDIRECT("'Absorbance Data'!"&bandedge!K8&bandedge!L8&":"&bandedge!K8&bandedge!M8),INDIRECT("'Absorbance Data'!D"&bandedge!L8&":D"&bandedge!M8)) ->  | H8: =INTERCEPT(INDIRECT("'Absorbance Data'!"&bandedge!K8&bandedge!L8&":"&bandedge!K8&bandedge!M8),INDIRECT("'Absorbance Data'!D"&bandedge!L8&":D"&bandedge!M8)) ->  | I8: =SLOPE(INDIRECT("'Absorbance Data'!"&bandedge!K8&bandedge!N8&":"&bandedge!K8&bandedge!O8),INDIRECT("'Absorbance Data'!D"&bandedge!N8&":D"&bandedge!O8)) ->  | J8: =INTERCEPT(INDIRECT("'Absorbance Data'!"&bandedge!K8&bandedge!N8&":"&bandedge!K8&bandedge!O8),INDIRECT("'Absorbance Data'!D"&bandedge!N8&":D"&bandedge!O8)) ->  | K8: K | L8: =2063+MATCH(B8,'Absorbance Data'!$D$2063:$D$4109) -> 2949 | M8: =2063+MATCH(C8,'Absorbance Data'!$D$2063:$D$4109) -> 3039 | N8: =2063+MATCH(D8,'Absorbance Data'!$D$2063:$D$4109) -> 3408 | O8: =2063+MATCH(E8,'Absorbance Data'!$D$2063:$D$4109) -> 3731 | U8: sample 7
A9: 8 | B9: 560 | C9: 590 | D9: 690 | E9: 775 | G9: =SLOPE(INDIRECT("'Absorbance Data'!"&bandedge!K9&bandedge!L9&":"&bandedge!K9&bandedge!M9),INDIRECT("'Absorbance Data'!D"&bandedge!L9&":D"&bandedge!M9)) ->  | H9: =INTERCEPT(INDIRECT("'Absorbance Data'!"&bandedge!K9&bandedge!L9&":"&bandedge!K9&bandedge!M9),INDIRECT("'Absorbance Data'!D"&bandedge!L9&":D"&bandedge!M9)) ->  | I9: =SLOPE(INDIRECT("'Absorbance Data'!"&bandedge!K9&bandedge!N9&":"&bandedge!K9&bandedge!O9),INDIRECT("'Absorbance Data'!D"&bandedge!N9&":D"&bandedge!O9)) ->  | J9: =INTERCEPT(INDIRECT("'Absorbance Data'!"&bandedge!K9&bandedge!N9&":"&bandedge!K9&bandedge!O9),INDIRECT("'Absorbance Data'!D"&bandedge!N9&":D"&bandedge!O9)) ->  | K9: L | L9: =2063+MATCH(B9,'Absorbance Data'!$D$2063:$D$4109) -> 3129 | M9: =2063+MATCH(C9,'Absorbance Data'!$D$2063:$D$4109) -> 3221 | N9: =2063+MATCH(D9,'Absorbance Data'!$D$2063:$D$4109) -> 3536 | O9: =2063+MATCH(E9,'Absorbance Data'!$D$2063:$D$4109) -> 3814 | U9: sample 8
A10: 9 | B10: 610 | C10: 630 | D10: 740 | E10: 775 | G10: =SLOPE(INDIRECT("'Absorbance Data'!"&bandedge!K10&bandedge!L10&":"&bandedge!K10&bandedge!M10),INDIRECT("'Absorbance Data'!D"&bandedge!L10&":D"&bandedge!M10)) ->  | H10: =INTERCEPT(INDIRECT("'Absorbance Data'!"&bandedge!K10&bandedge!L10&":"&bandedge!K10&bandedge!M10),INDIRECT("'Absorbance Data'!D"&bandedge!L10&":D"&bandedge!M10)) ->  | I10: =SLOPE(INDIRECT("'Absorbance Data'!"&bandedge!K10&bandedge!N10&":"&bandedge!K10&bandedge!O10),INDIRECT("'Absorbance Data'!D"&bandedge!N10&":D"&bandedge!O10)) ->  | J10: =INTERCEPT(INDIRECT("'Absorbance Data'!"&bandedge!K10&bandedge!N10&":"&bandedge!K10&bandedge!O10),INDIRECT("'Absorbance Data'!D"&bandedge!N10&":D"&bandedge!O10)) ->  | K10: M | L10: =2063+MATCH(B10,'Absorbance Data'!$D$2063:$D$4109) -> 3283 | M10: =2063+MATCH(C10,'Absorbance Data'!$D$2063:$D$4109) -> 3345 | N10: =2063+MATCH(D10,'Absorbance Data'!$D$2063:$D$4109) -> 3698 | O10: =2063+MATCH(E10,'Absorbance Data'!$D$2063:$D$4109) -> 3814 | U10: sample 9
A11: 10 | G11: =SLOPE(INDIRECT("'Absorbance Data'!"&bandedge!K11&bandedge!L11&":"&bandedge!K11&bandedge!M11),INDIRECT("'Absorbance Data'!D"&bandedge!L11&":D"&bandedge!M11)) ->  | H11: =INTERCEPT(INDIRECT("'Absorbance Data'!"&bandedge!K11&bandedge!L11&":"&bandedge!K11&bandedge!M11),INDIRECT("'Absorbance Data'!D"&bandedge!L11&":D"&bandedge!M11)) ->  | I11: =SLOPE(INDIRECT("'Absorbance Data'!"&bandedge!K11&bandedge!N11&":"&bandedge!K11&bandedge!O11),INDIRECT("'Absorbance Data'!D"&bandedge!N11&":D"&bandedge!O11)) ->  | J11: =INTERCEPT(INDIRECT("'Absorbance Data'!"&bandedge!K11&bandedge!N11&":"&bandedge!K11&bandedge!O11),INDIRECT("'Absorbance Data'!D"&bandedge!N11&":D"&bandedge!O11)) ->  | K11: N | L11: =2063+MATCH(B11,'Absorbance Data'!$D$2063:$D$4109) ->  | M11: =2063+MATCH(C11,'Absorbance Data'!$D$2063:$D$4109) ->  | N11: =2063+MATCH(D11,'Absorbance Data'!$D$2063:$D$4109) ->  | O11: =2063+MATCH(E11,'Absorbance Data'!$D$2063:$D$4109) ->  | U11: sample 10
A12: 11 | G12: =SLOPE(INDIRECT("'Absorbance Data'!"&bandedge!K12&bandedge!L12&":"&bandedge!K12&bandedge!M12),INDIRECT("'Absorbance Data'!D"&bandedge!L12&":D"&bandedge!M12)) ->  | H12: =INTERCEPT(INDIRECT("'Absorbance Data'!"&bandedge!K12&bandedge!L12&":"&bandedge!K12&bandedge!M12),INDIRECT("'Absorbance Data'!D"&bandedge!L12&":D"&bandedge!M12)) ->  | I12: =SLOPE(INDIRECT("'Absorbance Data'!"&bandedge!K12&bandedge!N12&":"&bandedge!K12&bandedge!O12),INDIRECT("'Absorbance Data'!D"&bandedge!N12&":D"&bandedge!O12)) ->  | J12: =INTERCEPT(INDIRECT("'Absorbance Data'!"&bandedge!K12&bandedge!N12&":"&bandedge!K12&bandedge!O12),INDIRECT("'Absorbance Data'!D"&bandedge!N12&":D"&bandedge!O12)) ->  | K12: O | L12: =2063+MATCH(B12,'Absorbance Data'!$D$2063:$D$4109) ->  | M12: =2063+MATCH(C12,'Absorbance Data'!$D$2063:$D$4109) ->  | N12: =2063+MATCH(D12,'Absorbance Data'!$D$2063:$D$4109) ->  | O12: =2063+MATCH(E12,'Absorbance Data'!$D$2063:$D$4109) ->  | U12: sample 11
A13: 12 | G13: =SLOPE(INDIRECT("'Absorbance Data'!"&bandedge!K13&bandedge!L13&":"&bandedge!K13&bandedge!M13),INDIRECT("'Absorbance Data'!D"&bandedge!L13&":D"&bandedge!M13)) ->  | H13: =INTERCEPT(INDIRECT("'Absorbance Data'!"&bandedge!K13&bandedge!L13&":"&bandedge!K13&bandedge!M13),INDIRECT("'Absorbance Data'!D"&bandedge!L13&":D"&bandedge!M13)) ->  | I13: =SLOPE(INDIRECT("'Absorbance Data'!"&bandedge!K13&bandedge!N13&":"&bandedge!K13&bandedge!O13),INDIRECT("'Absorbance Data'!D"&bandedge!N13&":D"&bandedge!O13)) ->  | J13: =INTERCEPT(INDIRECT("'Absorbance Data'!"&bandedge!K13&bandedge!N13&":"&bandedge!K13&bandedge!O13),INDIRECT("'Absorbance Data'!D"&bandedge!N13&":D"&bandedge!O13)) ->  | K13: P | L13: =2063+MATCH(B13,'Absorbance Data'!$D$2063:$D$4109) ->  | M13: =2063+MATCH(C13,'Absorbance Data'!$D$2063:$D$4109) ->  | N13: =2063+MATCH(D13,'Absorbance Data'!$D$2063:$D$4109) ->  | O13: =2063+MATCH(E13,'Absorbance Data'!$D$2063:$D$4109) ->  | U13: sample 12
G14: =SLOPE(INDIRECT("'Absorbance Data'!"&bandedge!K14&bandedge!L14&":"&bandedge!K14&bandedge!M14),INDIRECT("'Absorbance Data'!D"&bandedge!L14&":D"&bandedge!M14)) ->  | H14: =INTERCEPT(INDIRECT("'Absorbance Data'!"&bandedge!K14&bandedge!L14&":"&bandedge!K14&bandedge!M14),INDIRECT("'Absorbance Data'!D"&bandedge!L14&":D"&bandedge!M14)) ->  | I14: =SLOPE(INDIRECT("'Absorbance Data'!"&bandedge!K14&bandedge!N14&":"&bandedge!K14&bandedge!O14),INDIRECT("'Absorbance Data'!D"&bandedge!N14&":D"&bandedge!O14)) ->  | J14: =INTERCEPT(INDIRECT("'Absorbance Data'!"&bandedge!K14&bandedge!N14&":"&bandedge!K14&bandedge!O14),INDIRECT("'Absorbance Data'!D"&bandedge!N14&":D"&bandedge!O14)) ->  | K14: Q | L14: =2063+MATCH(B14,'Absorbance Data'!$D$2063:$D$4109) ->  | M14: =2063+MATCH(C14,'Absorbance Data'!$D$2063:$D$4109) ->  | N14: =2063+MATCH(D14,'Absorbance Data'!$D$2063:$D$4109) ->  | O14: =2063+MATCH(E14,'Absorbance Data'!$D$2063:$D$4109) ->  | U14: sample 13
G15: =SLOPE(INDIRECT("'Absorbance Data'!"&bandedge!K15&bandedge!L15&":"&bandedge!K15&bandedge!M15),INDIRECT("'Absorbance Data'!D"&bandedge!L15&":D"&bandedge!M15)) ->  | H15: =INTERCEPT(INDIRECT("'Absorbance Data'!"&bandedge!K15&bandedge!L15&":"&bandedge!K15&bandedge!M15),INDIRECT("'Absorbance Data'!D"&bandedge!L15&":D"&bandedge!M15)) ->  | I15: =SLOPE(INDIRECT("'Absorbance Data'!"&bandedge!K15&bandedge!N15&":"&bandedge!K15&bandedge!O15),INDIRECT("'Absorbance Data'!D"&bandedge!N15&":D"&bandedge!O15)) ->  | J15: =INTERCEPT(INDIRECT("'Absorbance Data'!"&bandedge!K15&bandedge!N15&":"&bandedge!K15&bandedge!O15),INDIRECT("'Absorbance Data'!D"&bandedge!N15&":D"&bandedge!O15)) ->  | K15: R | L15: =2063+MATCH(B15,'Absorbance Data'!$D$2063:$D$4109) ->  | M15: =2063+MATCH(C15,'Absorbance Data'!$D$2063:$D$4109) ->  | N15: =2063+MATCH(D15,'Absorbance Data'!$D$2063:$D$4109) ->  | O15: =2063+MATCH(E15,'Absorbance Data'!$D$2063:$D$4109) ->  | U15: sample 14
G16: =SLOPE(INDIRECT("'Absorbance Data'!"&bandedge!K16&bandedge!L16&":"&bandedge!K16&bandedge!M16),INDIRECT("'Absorbance Data'!D"&bandedge!L16&":D"&bandedge!M16)) ->  | H16: =INTERCEPT(INDIRECT("'Absorbance Data'!"&bandedge!K16&bandedge!L16&":"&bandedge!K16&bandedge!M16),INDIRECT("'Absorbance Data'!D"&bandedge!L16&":D"&bandedge!M16)) ->  | I16: =SLOPE(INDIRECT("'Absorbance Data'!"&bandedge!K16&bandedge!N16&":"&bandedge!K16&bandedge!O16),INDIRECT("'Absorbance Data'!D"&bandedge!N16&":D"&bandedge!O16)) ->  | J16: =INTERCEPT(INDIRECT("'Absorbance Data'!"&bandedge!K16&bandedge!N16&":"&bandedge!K16&bandedge!O16),INDIRECT("'Absorbance Data'!D"&bandedge!N16&":D"&bandedge!O16)) ->  | K16: S | L16: =2063+MATCH(B16,'Absorbance Data'!$D$2063:$D$4109) ->  | M16: =2063+MATCH(C16,'Absorbance Data'!$D$2063:$D$4109) ->  | N16: =2063+MATCH(D16,'Absorbance Data'!$D$2063:$D$4109) ->  | O16: =2063+MATCH(E16,'Absorbance Data'!$D$2063:$D$4109) ->  | U16: sample 15
G17: =SLOPE(INDIRECT("'Absorbance Data'!"&bandedge!K17&bandedge!L17&":"&bandedge!K17&bandedge!M17),INDIRECT("'Absorbance Data'!D"&bandedge!L17&":D"&bandedge!M17)) ->  | H17: =INTERCEPT(INDIRECT("'Absorbance Data'!"&bandedge!K17&bandedge!L17&":"&bandedge!K17&bandedge!M17),INDIRECT("'Absorbance Data'!D"&bandedge!L17&":D"&bandedge!M17)) ->  | I17: =SLOPE(INDIRECT("'Absorbance Data'!"&bandedge!K17&bandedge!N17&":"&bandedge!K17&bandedge!O17),INDIRECT("'Absorbance Data'!D"&bandedge!N17&":D"&bandedge!O17)) ->  | J17: =INTERCEPT(INDIRECT("'Absorbance Data'!"&bandedge!K17&bandedge!N17&":"&bandedge!K17&bandedge!O17),INDIRECT("'Absorbance Data'!D"&bandedge!N17&":D"&bandedge!O17)) ->  | K17: T | L17: =2063+MATCH(B17,'Absorbance Data'!$D$2063:$D$4109) ->  | M17: =2063+MATCH(C17,'Absorbance Data'!$D$2063:$D$4109) ->  | N17: =2063+MATCH(D17,'Absorbance Data'!$D$2063:$D$4109) ->  | O17: =2063+MATCH(E17,'Absorbance Data'!$D$2063:$D$4109) ->  | U17: sample 16
G18: =SLOPE(INDIRECT("'Absorbance Data'!"&bandedge!K18&bandedge!L18&":"&bandedge!K18&bandedge!M18),INDIRECT("'Absorbance Data'!D"&bandedge!L18&":D"&bandedge!M18)) ->  | H18: =INTERCEPT(INDIRECT("'Absorbance Data'!"&bandedge!K18&bandedge!L18&":"&bandedge!K18&bandedge!M18),INDIRECT("'Absorbance Data'!D"&bandedge!L18&":D"&bandedge!M18)) ->  | I18: =SLOPE(INDIRECT("'Absorbance Data'!"&bandedge!K18&bandedge!N18&":"&bandedge!K18&bandedge!O18),INDIRECT("'Absorbance Data'!D"&bandedge!N18&":D"&bandedge!O18)) ->  | J18: =INTERCEPT(INDIRECT("'Absorbance Data'!"&bandedge!K18&bandedge!N18&":"&bandedge!K18&bandedge!O18),INDIRECT("'Absorbance Data'!D"&bandedge!N18&":D"&bandedge!O18)) ->  | K18: U | L18: =2063+MATCH(B18,'Absorbance Data'!$D$2063:$D$4109) ->  | M18: =2063+MATCH(C18,'Absorbance Data'!$D$2063:$D$4109) ->  | N18: =2063+MATCH(D18,'Absorbance Data'!$D$2063:$D$4109) ->  | O18: =2063+MATCH(E18,'Absorbance Data'!$D$2063:$D$4109) ->  | U18: sample 17
G19: =SLOPE(INDIRECT("'Absorbance Data'!"&bandedge!K19&bandedge!L19&":"&bandedge!K19&bandedge!M19),INDIRECT("'Absorbance Data'!D"&bandedge!L19&":D"&bandedge!M19)) ->  | H19: =INTERCEPT(INDIRECT("'Absorbance Data'!"&bandedge!K19&bandedge!L19&":"&bandedge!K19&bandedge!M19),INDIRECT("'Absorbance Data'!D"&bandedge!L19&":D"&bandedge!M19)) ->  | I19: =SLOPE(INDIRECT("'Absorbance Data'!"&bandedge!K19&bandedge!N19&":"&bandedge!K19&bandedge!O19),INDIRECT("'Absorbance Data'!D"&bandedge!N19&":D"&bandedge!O19)) ->  | J19: =INTERCEPT(INDIRECT("'Absorbance Data'!"&bandedge!K19&bandedge!N19&":"&bandedge!K19&bandedge!O19),INDIRECT("'Absorbance Data'!D"&bandedge!N19&":D"&bandedge!O19)) ->  | K19: V | L19: =2063+MATCH(B19,'Absorbance Data'!$D$2063:$D$4109) ->  | M19: =2063+MATCH(C19,'Absorbance Data'!$D$2063:$D$4109) ->  | N19: =2063+MATCH(D19,'Absorbance Data'!$D$2063:$D$4109) ->  | O19: =2063+MATCH(E19,'Absorbance Data'!$D$2063:$D$4109) ->  | U19: sample 18
G20: =SLOPE(INDIRECT("'Absorbance Data'!"&bandedge!K20&bandedge!L20&":"&bandedge!K20&bandedge!M20),INDIRECT("'Absorbance Data'!D"&bandedge!L20&":D"&bandedge!M20)) ->  | H20: =INTERCEPT(INDIRECT("'Absorbance Data'!"&bandedge!K20&bandedge!L20&":"&bandedge!K20&bandedge!M20),INDIRECT("'Absorbance Data'!D"&bandedge!L20&":D"&bandedge!M20)) ->  | I20: =SLOPE(INDIRECT("'Absorbance Data'!"&bandedge!K20&bandedge!N20&":"&bandedge!K20&bandedge!O20),INDIRECT("'Absorbance Data'!D"&bandedge!N20&":D"&bandedge!O20)) ->  | J20: =INTERCEPT(INDIRECT("'Absorbance Data'!"&bandedge!K20&bandedge!N20&":"&bandedge!K20&bandedge!O20),INDIRECT("'Absorbance Data'!D"&bandedge!N20&":D"&bandedge!O20)) ->  | K20: W | L20: =2063+MATCH(B20,'Absorbance Data'!$D$2063:$D$4109) ->  | M20: =2063+MATCH(C20,'Absorbance Data'!$D$2063:$D$4109) ->  | N20: =2063+MATCH(D20,'Absorbance Data'!$D$2063:$D$4109) ->  | O20: =2063+MATCH(E20,'Absorbance Data'!$D$2063:$D$4109) ->  | P20: =G20*B20+H20 ->  | Q20: =G20*C20+H20 ->  | R20: =I20*D20+J20 ->  | S20: =I20*E20+J20 ->  | U20: ="sample "&CODE(K20)-68 -> sample 19
G21: =SLOPE(INDIRECT("'Absorbance Data'!"&bandedge!K21&bandedge!L21&":"&bandedge!K21&bandedge!M21),INDIRECT("'Absorbance Data'!D"&bandedge!L21&":D"&bandedge!M21)) ->  | H21: =INTERCEPT(INDIRECT("'Absorbance Data'!"&bandedge!K21&bandedge!L21&":"&bandedge!K21&bandedge!M21),INDIRECT("'Absorbance Data'!D"&bandedge!L21&":D"&bandedge!M21)) ->  | I21: =SLOPE(INDIRECT("'Absorbance Data'!"&bandedge!K21&bandedge!N21&":"&bandedge!K21&bandedge!O21),INDIRECT("'Absorbance Data'!D"&bandedge!N21&":D"&bandedge!O21)) ->  | J21: =INTERCEPT(INDIRECT("'Absorbance Data'!"&bandedge!K21&bandedge!N21&":"&bandedge!K21&bandedge!O21),INDIRECT("'Absorbance Data'!D"&bandedge!N21&":D"&bandedge!O21)) ->  | K21: X | L21: =2063+MATCH(B21,'Absorbance Data'!$D$2063:$D$4109) ->  | M21: =2063+MATCH(C21,'Absorbance Data'!$D$2063:$D$4109) ->  | N21: =2063+MATCH(D21,'Absorbance Data'!$D$2063:$D$4109) ->  | O21: =2063+MATCH(E21,'Absorbance Data'!$D$2063:$D$4109) ->  | U21: sample 20
G22: =SLOPE(INDIRECT("'Absorbance Data'!"&bandedge!K22&bandedge!L22&":"&bandedge!K22&bandedge!M22),INDIRECT("'Absorbance Data'!D"&bandedge!L22&":D"&bandedge!M22)) ->  | H22: =INTERCEPT(INDIRECT("'Absorbance Data'!"&bandedge!K22&bandedge!L22&":"&bandedge!K22&bandedge!M22),INDIRECT("'Absorbance Data'!D"&bandedge!L22&":D"&bandedge!M22)) ->  | I22: =SLOPE(INDIRECT("'Absorbance Data'!"&bandedge!K22&bandedge!N22&":"&bandedge!K22&bandedge!O22),INDIRECT("'Absorbance Data'!D"&bandedge!N22&":D"&bandedge!O22)) ->  | J22: =INTERCEPT(INDIRECT("'Absorbance Data'!"&bandedge!K22&bandedge!N22&":"&bandedge!K22&bandedge!O22),INDIRECT("'Absorbance Data'!D"&bandedge!N22&":D"&bandedge!O22)) ->  | K22: Y | L22: =2063+MATCH(B22,'Absorbance Data'!$D$2063:$D$4109) ->  | M22: =2063+MATCH(C22,'Absorbance Data'!$D$2063:$D$4109) ->  | N22: =2063+MATCH(D22,'Absorbance Data'!$D$2063:$D$4109) ->  | O22: =2063+MATCH(E22,'Absorbance Data'!$D$2063:$D$4109) ->  | U22: sample 21
G23: =SLOPE(INDIRECT("'Absorbance Data'!"&bandedge!K23&bandedge!L23&":"&bandedge!K23&bandedge!M23),INDIRECT("'Absorbance Data'!D"&bandedge!L23&":D"&bandedge!M23)) ->  | H23: =INTERCEPT(INDIRECT("'Absorbance Data'!"&bandedge!K23&bandedge!L23&":"&bandedge!K23&bandedge!M23),INDIRECT("'Absorbance Data'!D"&bandedge!L23&":D"&bandedge!M23)) ->  | I23: =SLOPE(INDIRECT("'Absorbance Data'!"&bandedge!K23&bandedge!N23&":"&bandedge!K23&bandedge!O23),INDIRECT("'Absorbance Data'!D"&bandedge!N23&":D"&bandedge!O23)) ->  | J23: =INTERCEPT(INDIRECT("'Absorbance Data'!"&bandedge!K23&bandedge!N23&":"&bandedge!K23&bandedge!O23),INDIRECT("'Absorbance Data'!D"&bandedge!N23&":D"&bandedge!O23)) ->  | K23: Z | L23: =2063+MATCH(B23,'Absorbance Data'!$D$2063:$D$4109) ->  | M23: =2063+MATCH(C23,'Absorbance Data'!$D$2063:$D$4109) ->  | N23: =2063+MATCH(D23,'Absorbance Data'!$D$2063:$D$4109) ->  | O23: =2063+MATCH(E23,'Absorbance Data'!$D$2063:$D$4109) ->  | U23: sample 22
